Cogmind - Beta 15 @@@ ROGUE MODE // 2025.07.04 @ 14:51:25 Player: beans Result: Destroyed by 1J-ND2(h) with Bolt Gun Performance ------------- Evolutions (0) 0 Regions Visited (4) 800 Robots Destroyed (11) 55 Value Destroyed (361) 361 Prototype IDs (7) 140 Alien Tech Used (0) 0 Bonus (801) 801 TOTAL SCORE: 2157 Bonus ------- Follower Combat Kills 25 Registered with UFD 300 Met Optimus in HQ 500 Friendly Fire -24 Cogmind --------- Core Integrity 0/250 Matter 234/300 Energy 290/290 System Corruption 0% Temperature Cool (0) Movement Treading (170) Location -7/Scraptown Parts ------- > --- POWER (1) -------- Improved Deuterium Engine > --- PROPULSION (2) --- Armored Treads Overtuned Treads > --- UTILITY (2) ------ Signal Interpreter > --- WEAPON (2) ------- Shotgun Flak Cannon > --- INVENTORY (5) ---- Advanced Targeting Computer Mini Grenade Launcher Junk Cannon (0) DRS Beacon (Ready) Peak State ------------ > --- POWER ------------ Improved Deuterium Engine > --- PROPULSION ------- Armored Treads Overtuned Treads > --- UTILITY ---------- Signal Interpreter Particle Charger > --- WEAPON ----------- Junk Cannon > --- INVENTORY -------- Improved Heat Sink Advanced Targeting Computer Mini Grenade Launcher [Rating: 26] Favorites ----------- Power Improved Deuterium Engine Engine Improved Deuterium Engine Propulsion Overtuned Treads Treads Overtuned Treads Hover Unit Combat Airjet Flight Unit Flight Unit Utility Signal Interpreter Device Particle Charger Processor Signal Interpreter Protection Improved Light Armor Plating Weapon Shotgun Energy Gun Medium Laser Ballistic Gun Shotgun Ballistic Cannon Flak Cannon Launcher Mini Grenade Launcher Special Weapon Junk Cannon Build | -11 -10 -10 -10 -7 ------- Run | Yrd Mat Min Sub Scr Slots Evolved . | . . . . . Power . | . . . . . Propulsion . | . . . . . Utility . | . . . . . Weapon . | . . . . . Parts Attached 23 | 5 . 8 2 8 Power 3 | 1 . . 1 1 Engine 3 | 1 . . 1 1 Core . | . . . . . Reactor . | . . . . . Propulsion 8 | 2 . 4 . 2 Treads 4 | 2 . . . 2 Leg . | . . . . . Wheel . | . . . . . Hover 2 | . . 2 . . Flight 2 | . . 2 . . Utility 5 | . . 3 1 1 Device 3 | . . 2 . 1 Storage . | . . . . . Processor 1 | . . . 1 . Hackware . | . . . . . Protection 1 | . . 1 . . Artifact . | . . . . . Weapon 7 | 2 . 1 . 4 Energy Gun 2 | 2 . . . . Energy Cannon . | . . . . . Ballistic Gun 2 | . . . . 2 Ballistic Cannon 1 | . . . . 1 Launcher 1 | . . 1 . . Special Weapon 1 | . . . . 1 Impact Weapon . | . . . . . Slashing Weapon . | . . . . . Piercing Weapon . | . . . . . Special Melee Weapon . | . . . . . Unidentified Prototypes 1 | . . . . 1 Parts Lost 7 | . . 5 1 1 Power 1 | . . . 1 . Propulsion 2 | . . 2 . . Utility 2 | . . 1 . 1 Weapon 2 | . . 2 . . Highest Loss Streak 4 | . . 4 1 1 To Critical Strikes . | . . . . . Average Backups 3 | . . 1 2 3 Power . | . . . . . Propulsion . | . . . 1 . Utility 1 | . . . 1 1 Weapon 1 | . . . . 1 Tool/Special . | . . . . . Unused Backups 3 | . . 1 . 2 Power . | . . . . . Propulsion . | . . . . . Utility 2 | . . . . 2 Weapon 1 | . . 1 . . Tool/Special . | . . . . . Average Slot Usage (%) 86 | . 71 62 78 91 Engine 10 | . 14 14 10 10 Treads 18 | . 28 13 . 20 Hover 8 | . . 4 28 7 Flight 1 | . . 9 . . Device 8 | . . 2 . 11 Processor 11 | . . . 11 14 Protection 2 | . . 2 14 1 Energy Gun 2 | . 28 15 . . Ballistic Gun 12 | . . . . 16 Ballistic Cannon 6 | . . . . 7 Launcher 1 | . . . 14 . Peak Build Rating 26 | 5 5 16 18 26 Average Rating 17 | 3 5 6 17 19 On Entrance 8 | . 5 5 16 16 Naked Turns . | . . . . . Heaviest Build 22 | 9 9 9 9 22 Greatest Support 40 | 40 40 40 24 38 Greatest Overweight (x) 1 | . . 1 . 1 Average Overweight (x) . | . . . . . Largest Inventory Capacity 5 | 5 5 5 5 5 Average Capacity 5 | 5 5 5 5 5 Most Carried 5 | 5 1 4 4 5 Average Carried 3 | . . 1 2 4 Final Capacity 5 | 5 5 5 5 5 Final Carried 5 | . 1 2 3 5 Class Distribution -------------------- 91% | Mutant 8% | Scavenger-Mutant Dominant Class ---------------- Mutant | -10/Materials Mutant | -10/Mines Scavenger-Mutant | -10/Subcaves Mutant | -7/Scraptown Resources | -11 -10 -10 -10 -7 ----------- Run | Yrd Mat Min Sub Scr Matter Collected 640 | 187 . 123 71 259 Remotely . | . . . . . Salvage Created 403 | . 18 147 78 160 Parts 28 | . 3 7 9 9 Haulers Intercepted . | . . . . . Recyclers Shooed . | . . . . . Parts Field Recycled . | . . . . . Retrieved Matter . | . . . . . Parts Self-Destructed . | . . . . . Prevented . | . . . . . Kills | -11 -10 -10 -10 -7 ------- Run | Yrd Mat Min Sub Scr Combat Hostiles Destroyed 13 | . . 7 3 3 Guns 7 | . . 7 . . Cannons 2 | . . . . 2 AOE 3 | . . . 3 . Classes Destroyed 8 | . 1 3 2 2 Operator 1 | . 1 . . . Swarmer 3 | . . 3 . . Grunt 1 | . . 1 . . Artisan 1 | . . . 1 . Subdweller 3 | . . . 3 . Guru 1 | . . . . 1 Scrapper 2 | . . . . 2 Assembled 3 | . . 3 . . Best Kill Streak 3 | . 1 3 2 1 Combat Bots Only 3 | . . 3 2 1 Max Kills in Single Turn 1 | . 1 1 1 1 Gunslinging . | . . . . . Exploded 1 | . . . 1 . Melee . | . . . . . Uniques/NPCs Destroyed . | . . . . . Combat | -11 -10 -10 -10 -7 -------- Run | Yrd Mat Min Sub Scr Hostile Shots Fired 91 | . . 45 10 36 Missed 24 | . . 9 5 10 Hits 67 | . . 36 5 26 Melee 1 | . . 1 . . Projectile 66 | . . 35 5 26 AOE 3 | . . 3 . . Critical Strikes 4 | . . 3 . 1 Part Disruptions 2 | . . 2 . . Damage Taken 972 | . . 505 121 346 Core 251 | . . 118 54 79 Absorbed by Shields . | . . . . . Core Remaining (%) 100 | 100 . . . . Volleys Fired 77 | . 1 41 19 16 Largest 2 | . 2 2 1 1 Hottest 90 | . 90 90 30 37 Shots Fired 81 | . 2 44 19 16 Gun 46 | . 2 44 . . Cannon 16 | . . . . 16 Launcher 19 | . . . 19 . Special . | . . . . . Kinetic 16 | . . . . 16 Thermal 42 | . 1 41 . . Explosive 19 | . . . 19 . Electromagnetic 4 | . 1 3 . . Robot Hit Streak 9 | . 1 7 9 7 Robot Miss Streak 5 | . . 3 . 5 Penetration Max . | . . . . . Secondary Targets . | . . . . . Shots Hit Robots 52 | . 1 27 8 16 Core Hits 41 | . 1 11 14 15 Critical Kills . | . . . . . Critical Parts Destroyed . | . . . . . Critical Strikes 2 | . . 2 . . Burn 2 | . . 2 . . Melee Attacks . | . . . . . Impact . | . . . . . Slashing . | . . . . . Piercing . | . . . . . Sneak Attacks . | . . . . . Combat Hostiles . | . . . . . Follow-up Attacks . | . . . . . Damage Inflicted 1881 | . 15 358 1239 269 Guns 373 | . 15 358 . . Cannons 269 | . . . . 269 Explosions 1239 | . . . 1239 . Melee . | . . . . . Ramming . | . . . . . Kinetic 269 | . . . . 269 Thermal 313 | . . 313 . . Explosive 1239 | . . . 1239 . Electromagnetic 60 | . 15 45 . . Impact . | . . . . . Slashing . | . . . . . Piercing . | . . . . . Highest Corruption . | . . . . . Average Corruption . | . . . . . Corruption Purged . | . . . . . Corruption Blocked . | . . . . . Overload Shots . | . . . . . Overflow Damage 1 | . . . 1 . Projectiles . | . . . . . Explosions 1 | . . . 1 . Melee . | . . . . . Knockbacks . | . . . . . Impact . | . . . . . Kinetic . | . . . . . Secondary . | . . . . . Self-Inflicted Damage 25 | . . . 25 . Shots 2 | . . . 2 . Rammed . | . . . . . Targets Rammed . | . . . . . Kicked . | . . . . . Crushed . | . . . . . Highest Temperature 294 | . 30 294 . 49 Average Temperature 97 | . 18 110 . 25 Received Heat Transfer 506 | . . 319 30 157 Siege Activations . | . . . . . Martial Activations . | . . . . . Shielding Activations . | . . . . . Robots Disrupted . | . . . . . Combat Hostiles . | . . . . . Robots Corrupted . | . . . . . Combat Hostiles . | . . . . . Parts Fried . | . . . . . Impact Corruptions . | . . . . . Robots Melted . | . . . . . Combat Hostiles . | . . . . . Parts Melted 4 | . . 2 . 2 Heat Transferred 1073 | . . 1073 . . Parts Sabotaged . | . . . . . Parts Stolen . | . . . . . Parts Stripped . | . . . . . Power Chain Reactions . | . . . . . Alert | -11 -10 -10 -10 -7 ------- Run | Yrd Mat Min Sub Scr Maximum Alert Level . | . . . . . Low Security (%) 100 | 100 100 100 . . Level 1 . | . . . . . Level 2 . | . . . . . Level 3 . | . . . . . Level 4 . | . . . . . Level 5 . | . . . . . High Security . | . . . . . Max Security . | . . . . . Peak Influence 134 | . 5 134 . . Initial . | . . . . . Average 25 | . . 33 . . Influence Increases 204 | . 5 199 . . Destroy 0b10 Robot/C 100 | . . 100 . . Destroy 0b10 Robot/NC 5 | . 5 . . . Destroy Leader 20 | . . 20 . . Allied During Kill 19 | . . 19 . . Disable Machine 15 | . . 15 . . Partial Spotted 45 | . . 45 . . Influence Decreases 204 | . 5 199 . . Time Decay 115 | . 5 110 . . Lost Part 29 | . . 29 . . Lost Ally 60 | . . 60 . . Squads Dispatched . | . . . . . Investigation . | . . . . . Extermination . | . . . . . Reinforcement . | . . . . . Assault . | . . . . . Garrison . | . . . . . Intercept . | . . . . . Searches Triggered . | . . . . . Construction Impeded . | . . . . . Haulers Reinforced . | . . . . . Active Scanning Responses . | . . . . . Cargo Convoy Interrupts . | . . . . . Stealth | -11 -10 -10 -10 -7 --------- Run | Yrd Mat Min Sub Scr Distress Signals . | . . . . . Communications Jammed . | . . . . . Distress Signals . | . . . . . Times Spotted 34 | . . 21 3 10 Peak Tracking Total 19 | . . 19 2 2 Tactical Retreats 2 | . . 2 . . Traps | -11 -10 -10 -10 -7 ------- Run | Yrd Mat Min Sub Scr Traps Triggered . | . . . . . Indirectly . | . . . . . Trap Hack Attempts . | . . . . . Triggered . | . . . . . Disarmed . | . . . . . Reprogrammed . | . . . . . Reused . | . . . . . Traps Extracted . | . . . . . Installed . | . . . . . Triggered . | . . . . . Machines | -11 -10 -10 -10 -7 ---------- Run | Yrd Mat Min Sub Scr Machines Disabled 1 | . . 1 . . Max in Single Turn 1 | . . 1 . . Machines Repaired . | . . . . . Machines Dismantled . | . . . . . Machines Sabotaged . | . . . . . Overloaded Fab Kills . | . . . . . Hacking | -11 -10 -10 -10 -7 --------- Run | Yrd Mat Min Sub Scr Machines Accessed 7 | . . . . 7 Terminals . | . . . . . Fabricators . | . . . . . Repair Stations . | . . . . . Recycling Units . | . . . . . Scanalyzers . | . . . . . Garrison Access . | . . . . . Total Hacks 43 | . . . . 43 Successful 43 | . . . . 43 Failed . | . . . . . Catastrophic . | . . . . . Database Lockouts . | . . . . . Manual . | . . . . . Terminals . | . . . . . Fabricators . | . . . . . Repair Stations . | . . . . . Recycling Units . | . . . . . Scanalyzers . | . . . . . Garrison Access . | . . . . . Terminal Hacks 43 | . . . . 43 Record 36 | . . . . 36 Robot Analysis 6 | . . . . 6 Proto ID Catalog 1 | . . . . 1 Fabricator Hacks . | . . . . . Repair Station Hacks . | . . . . . Recycling Unit Hacks . | . . . . . Scanalyzer . | . . . . . Garrison Access Hacks . | . . . . . Unauthorized Hacks . | . . . . . Terminals . | . . . . . Fabricators . | . . . . . Repair Stations . | . . . . . Recycling Units . | . . . . . Scanalyzers . | . . . . . Garrison Access . | . . . . . Data Cores Recovered 1 | . 1 . . . Used . | . . . . . Hacking Detections . | . . . . . Full Trace Events . | . . . . . Feedback Events . | . . . . . Feedback Blocked . | . . . . . Robot Schematics Acquired . | . . . . . Robots Built . | . . . . . Authchips . | . . . . . Time . | . . . . . Total Robot Build Rating . | . . . . . Part Schematics Acquired . | . . . . . Parts Built . | . . . . . Authchips . | . . . . . Time . | . . . . . Total Part Build Rating . | . . . . . Parts Repaired . | . . . . . Time . | . . . . . Parts Recycled . | . . . . . Recycled Matter . | . . . . . Retrieved Matter . | . . . . . Retrieved Components . | . . . . . Parts Scanalyzed . | . . . . . Part Schematics Acquired . | . . . . . Parts Damaged . | . . . . . Bothacking | -11 -10 -10 -10 -7 ------------ Run | Yrd Mat Min Sub Scr Used RIF Installer . | . . . . . Robots Hacked . | . . . . . Non-combat . | . . . . . Combat . | . . . . . Robot Hacks Applied . | . . . . . Relay Couplers Released . | . . . . . Fabnet Peak Effective % . | . . . . . Robots Rewired . | . . . . . Allies Hacked . | . . . . . Hacks Repelled . | . . . . . Allies | -11 -10 -10 -10 -7 -------- Run | Yrd Mat Min Sub Scr Total Allies 3 | . . 3 . . Largest Group 3 | . . 3 . . Highest-Rated Group 40 | . . 40 . . Highest-Rated Ally 16 | . . 16 . . Total Orders 1 | . . 1 . . FOLLOW 1 | . . 1 . . Ally Attacks 22 | . . 22 . . Total Damage 264 | . . 264 . . Kills 4 | . . 4 . . Allies Corrupted . | . . . . . Allies Melted 5 | . . 1 . 4 Intel | -11 -10 -10 -10 -7 ------- Run | Yrd Mat Min Sub Scr Active Infowar (turns) . | . . . . . Robot Analysis Total 6 | . . . . 6 Derelict Logs Recovered 1 | . . 1 . . Drone Launches . | . . . . . Drone Recoveries . | . . . . . Exploration | -11 -10 -10 -10 -7 ------------- Run | Yrd Mat Min Sub Scr Turns Passed 3707 | 56 100 479 243 2829 Spaces Moved 2438 | 44 61 384 188 1761 Core 21 | 21 . . . . Treads 1024 | 23 61 103 . 837 Legs . | . . . . . Wheels . | . . . . . Hover 1182 | . . 70 188 924 Flight 211 | . . 211 . . Fastest Speed 37 | 50 160 37 77 77 Average Speed 127 | 107 160 80 77 142 Slowest Speed 250 | 160 160 160 77 250 Overloaded Moves . | . . . . . Propulsion Burnouts . | . . . . . Robots Hopped . | . . . . . Potential Cave-ins . | . . . . . Cave-ins Triggered . | . . . . . Exploration Rate (%) 31 | 4 12 42 11 87 Regions Visited 4 Branch Regions 3 Pre-discovered Areas 1 | . . 1 . . Known Exits Taken 1 | . . . 1 . Unknown Exits Taken 3 | 1 1 1 . . Scrap Searched 4 | . . . . 4 Spaces Dug . | . . . . . Terrain Destroyed 101 | . . . 101 . Melee . | . . . . . Projectile . | . . . . . AOE 101 | . . . 101 . Terrain Rammed . | . . . . . Walls Destroyed . | . . . . . Machines Disabled . | . . . . . Actions | -11 -10 -10 -10 -7 --------- Run | Yrd Mat Min Sub Scr Total 2959 | 53 62 508 267 2069 Wait 382 | . . 65 55 262 Move 2434 | 43 60 383 187 1761 Hop . | . . . . . Pick Up 26 | 5 1 8 3 9 Fast Attach 2 | . . . . 2 Attach 18 | 5 . 6 2 5 Detach 3 | . . 1 . 2 Swap 4 | . . 2 . 2 Drop 11 | . . 2 1 8 Fire 77 | . 1 41 19 16 Melee . | . . . . . Ram . | . . . . . Kick . | . . . . . Crush . | . . . . . Escape Stasis . | . . . . . Rewire 2 | . . . . 2 Trap . | . . . . . Miscellaneous . | . . . . . Route ------- -11/Scrapyard -10/Materials -10/Mines (discovered 2 exits: [*Mat] / [*Sub]) -10/Subcaves -7/Scraptown (discovered 2 exits: *Fac x2) History --------- Turn | Location | Event 32 | -11/Scrapyard | Discovered new exit (range 12) 57 | -11/Scrapyard | Entered Materials 96 | -10/Materials | Discovered new exit (range 15) 157 | -10/Materials | Entered Mines 177 | -10/Mines | Discovered new exit (range 8) 212 | -10/Mines | Assisted by bots powering up and referring to "LRC-V3" 305 | -10/Mines | Build established: Mutant 399 | -10/Mines | Assembled infested the area 494 | -10/Mines | Lost 3 allies 576 | -10/Mines | Lost 4 parts (2n1u1w) 584 | -10/Mines | Learned location of Mines (-8) 632 | -10/Mines | Discovered new exit (range 6) 636 | -10/Mines | Entered Subcaves 637 | -10/Subcaves | Approached by a straggling Scientist 655 | -10/Subcaves | Core integrity fell below 50% 868 | -10/Subcaves | Scientist uncovered a shortcut to Scraptown 868 | -10/Subcaves | Identified exit to Scraptown 879 | -10/Subcaves | Entered Scraptown 1023 | -7/Scraptown | Visited UFD Registry 1058 | -7/Scraptown | Visited Cave Peace 1109 | -7/Scraptown | Discovered new exit (range 4) 1408 | -7/Scraptown | Visited SPCMW 1448 | -7/Scraptown | Visited Awakened 1562 | -7/Scraptown | Registered with UFD as "Biobox" 1594 | -7/Scraptown | Visited DA-N13 Charitable Foundation 1598 | -7/Scraptown | Found DCF Scrap (30 items) 1684 | -7/Scraptown | Visited Junk Cannon Lab 1820 | -7/Scraptown | Found Prototype Special Weapon 1822 | -7/Scraptown | Identified Junk Cannon 1874 | -7/Scraptown | Visited Research Penetration Think Tank 1918 | -7/Scraptown | Visited Scrapoid Research Area 1986 | -7/Scraptown | Visited Scrap Suit Storage 2057 | -7/Scraptown | Visited Junk Repository 2509 | -7/Scraptown | Visited Abandonware Association 2594 | -7/Scraptown | Visited Analyses Database 2651 | -7/Scraptown | Visited Derelict Rescue Squad 2700 | -7/Scraptown | Found DRS Beacon 2973 | -7/Scraptown | Visited Science Guys 3141 | -7/Scraptown | Met Optimus 3141 | -7/Scraptown | Accepted into 0bPrime 3541 | -7/Scraptown | Civil war broke out across Scraptown 3615 | -7/Scraptown | Identified exit to Factory 3659 | -7/Scraptown | Lost 7 allies 3668 | -7/Scraptown | Core integrity fell below 20% 3708 | -7/Scraptown | Destroyed by 1J-ND2(h) with Bolt Gun Last Messages --------------- 8H-5I3(j) heat short circuits Ovr. Titanium Leg. 8H-5I3(j) overheating. 8H-5I3(j) heat damages core (-9). Lgt. Deuterium Engine melted. ZO-LCT(j): "We are one!" PK-0ID(g) switches sides: "Sorry, the bolts are shinier on the other side!" Bolt penetrates Machine. Bolt penetrates ZO-LCT(j). ZO-LCT(j) cannibalizes Lgt. Deuterium Engine to repair Lgt. Deuterium Engine. Bolt penetrates ZO-LCT(j). ZO-LCT(j) destroyed. Penetrated by Bolt. Bolt penetrates PW-BVO(j). Penetrated by Bolt. Mak. Salvage Targeting Computer melted. PW-BVO(j) destroyed. Penetrated by Bolt. [Achievement: This Is Interesting...] Map ----- +----------------------------------------------------+ | "#?#" """ "#???????# =!////#???# #?#" | | "#?#" "#???????# =*]]=/#???# #?#" | | #?#" "#???????# *!*=*#???# #?#" | | "#?#" "#???????#######!##???###### ######?## | | ##### ##########???????#####!########### ######### | | #???????#""""=""""""""""" """"""""" | | #???????#" | | #???????#" | | #???????#" | | #???????#" | | ###### #???#####" =% | | ?????# #???#"""" h"""""""""""""""""""" | | ?????# #???#"""" !["""""""""""""""""""" | | ?????# #???#"""" !%=""###### ########## | | ?????# #???#"""" *= "# ##??? | | #????# #???#"""" ""# X"#??? | | ##??# ###?#"""" ""# "" "" ##??? | | #??# ""#"#"""" "# "" "" X"#??? | | " #??# """"#"""" "# " " ##### | | " #??# ! ""#######" *=!" "" | | " #??# ###?????#" =!%"" "" | | " #??# #########" !%[""# " [% " ##### | | " #??# != !%! = ""# "" ! "" ""#??? | | " #??# !%! [! ""# "" "" ##??? | | #??# ! ""# X"#??? | | ##??# %* @ * "# ##??? | | ###### =% TT =%!"###### ########## | | TT *%!=!"""""""""""""""""" | | [%= [[[=!!""""""""""""""""" | | ! [ %==[%=! | | =%*!%[%/[! | | **==!**= | | #""""#!=!%=[=![ [ !!* | | =*! #????#"!%[%[!!! !%*=%%== | | !%[ %! #????#"[""!*%""" """"""!"""" "" | | ######## ### ####????######==########### ####### | | ??????""""## #?????????# = #??# #??# | | ???? ## #?????????# #??# #??# | | ?? ""## #?????????# % #??#""" ""#??# | | # """ "## #?????????#"" ""#??#"" "#??# | | # """""" ?# #?????????#" "#??#"" " X "#??# | | # """ " ?# #?????????#"" ! ""#??#""""""""#??# | | ???? ""?"?# #?????????#" "#??##########??# | | ?????"""???# #?????????#"" ""#??????????????# | | ???????????# #?????????#" "#??????????????# | | ???????????# #?????????#" && " "#??????????????# | | ???????????# #?????????#""""""""#??????????????? | | ############ #?????????##########??????????????? | | #""""""""""" #????############################## | | #""""" """"" #????# ##"""##"""##"""##""" | +----------------------------------------------------+ Best States ------------- Heat Dissipation 53 Energy Generation 16 Energy Capacity 290 Matter Stores 300 Matter Capacity 300 Sight Range 16 Terrain Scan Density 10 Armor Coverage 150 Evasion (%) 62 Recoil Reduction 2 Particle Charging 15 Item Schematics ----------------- None Robot Schematics ------------------ None Fabricated ------------ Nothing Repaired ---------- Nothing Alien Tech Used ----------------- None Achievements -------------- Armchair Analyst Slippery One This Is Interesting... Challenges ------------ None Game ------ Seed BlastReflexSpecial Manual? 0 Play Time 00:28:59 Cumulative 37.5 hours Start 2025.07.04 @ 14:22:19 End 2025.07.04 @ 14:51:25 Sessions 1 Manual Loads 0 Difficulty Rogue Special Mode None Game No. 176 Rogue 176 Adventurer 0 Explorer 0 Win Type - Total 0 Types 0/0/0/0/0/0/0/0/0/0 Lore% 27 Gallery% 24 Achievement% 20 Wizard Run 0 Options --------- Layout 2 ASCII 0 Keyboard 0 Movement Mouse Keybinds 0 Fullscreen 1 Font 24/Smallcaps Map View 50x44 Zoom Use 0% Tactical HUD 0 Map Filters NONE Filters NONE Steam 1 RUN: 7f9fba12-d175-4380-944e-61ed03e47c6d